[Event "WYCC 2018 G16"]
[Site "Halkidiki"]
[Date "2018.10.22"]
[Round "4"]
[White "Ros Alonso, Joana"]
[Black "Bulatova, Kamaliya"]
[Result "0-1"]
[ECO "B51"]
[WhiteElo "1952"]
[BlackElo "2108"]
[Annotator "NA"]
[PlyCount "116"]
[EventDate "2018.10.20"]
[EventType "swiss"]
[EventCountry "GRE"]
[SourceTitle "playchess.com"]
[Source "ChessBase"]
[SourceQuality "1"]
[TimeControl "40/5400+30:1800+30"]

1. e4 {[%emt 0:00:00]} c5 {[%emt 0:00:00]} 2. Nf3 {[%emt 0:00:00]} d6 {[%emt 0:00:00]} 3. Bb5+ {[%emt 0:00:00]} Nc6 {[%emt 0:00:00]} 4. O-O {[%emt 0:00:01]} Bd7 {[%emt 0:00:00] LiveBook: 4014 Games} 5. Re1 {[%emt 0:00:19]} Nf6 {[%emt 0:00:00]} 6. c3 {[%emt 0:00:11]} a6 {[%emt 0:00:00]} 7. Bf1 {[%emt 0:00:10]} Bg4 {[%emt 0:00:01]} 8. d4 {[%emt 0:00:16]} cxd4 {[%emt 0:00:06]} 9. cxd4 {[%emt 0:00:09]} e5 {[%emt 0:00:06] B51: Sicilian: Moscow Variation (3 Bb5+) without 3...Bd7} 10. d5 {[%emt 0:01:16]} Nd4 {[%emt 0:00:06]} 11. h3 {[%emt 0:02:08]} (11. Be3 Nxf3+ 12. gxf3 Bd7 13. a4 Be7 14. Qb3 O-O 15. Na3 Nh5 16. Nc4 f5 17. Nxe5 dxe5 {½-½ (52) Kryvoruchko,Y (2689)-Andriasian,Z (2585) Riadh 2017}) 11... Nxf3+ {[%emt 0:01:41]} 12. gxf3 {[%emt 0:00:06]} Bd7 $146 {[%emt 0:01:05]} ({Predecessor:} 12... Bh5 13. Qd3 Rb8 14. f4 Nd7 15. Bg2 Be7 16. fxe5 dxe5 17. Nd2 {0-1 (69) Farago,S (2360)-Kutuzovic,B (2400) Budapest 1995}) 13. f4 {[%emt 0:07:49]} g6 {[%emt 0:09:27]} 14. fxe5 {[%emt 0:10:53]} dxe5 {[%emt 0:00:55]} 15. Nd2 {[%emt 0:00:42]} Nh5 {[%emt 0:06:32]} 16. Nc4 {[%emt 0:06:19]} Qf6 $11 {[%emt 0:08:43]} 17. Be3 {[%emt 0:19:14]} Bb4 {[%emt 0:05:17]} 18. Re2 {[%emt 0:09:14]} Nf4 {[%emt 0:06:53]} 19. Bxf4 {[%emt 0:05:57]} Qxf4 {[%emt 0:00:53]} 20. Nb6 {[%emt 0:05:38]} Rd8 {[%emt 0:04:24]} 21. Nxd7 {[%emt 0:00:46]} Rxd7 {[%emt 0:00:06]} 22. Qc1 {[%emt 0:03:01]} Qf6 {[%emt 0:03:14]} 23. a3 {[%emt 0:04:44]} Bd6 {[%emt 0:01:49]} 24. Qh6 {[%emt 0:04:10]} Rc7 {[%emt 0:02:59]} 25. Rae1 {[%emt 0:01:21]} Ke7 {[%emt 0:06:39]} 26. h4 {[%emt 0:00:38]} Bc5 {[%emt 0:07:53]} 27. Bh3 {[%emt 0:01:56]} Bd4 {[%emt 0:02:33]} 28. Kg2 {[%emt 0:01:21]} Rc5 {[%emt 0:03:49]} 29. Bg4 {[%emt 0:05:48]} Rg8 {[%emt 0:02:05]} 30. Qg5 {[%emt 0:01:20]} Rd8 {[%emt 0:02:33]} 31. Rd1 {[%emt 0:01:11]} h5 {[%emt 0:01:38]} 32. Bh3 {[%emt 0:02:03]} Rc4 {[%emt 0:01:03]} 33. Rdd2 {[%emt 0:00:44]} Qxg5+ {[%emt 0:01:54]} 34. hxg5 {[%emt 0:00:06]} Bb6 {[%emt 0:01:31]} 35. Rc2 {[%emt 0:03:39]} Rd4 {[%emt 0:00:23]} 36. Rc3 {[%emt 0:00:51]} Rb8 {[%emt 0:00:53]} 37. Rc8 {[%emt 0:00:43]} Rxc8 {[%emt 0:01:08]} 38. Bxc8 {[%emt 0:00:07]} Kd6 {[%emt 0:00:01]} 39. Bxb7 {[%emt 0:00:14]} Bd8 {[%emt 0:00:39]} 40. Bxa6 {[%emt 0:00:00]} Bxg5 {[%emt 0:00:00]} 41. b4 {[%emt 0:03:37]} Bc1 {[%emt 0:01:43]} 42. b5 {[%emt 0:11:47]} Bxa3 {[%emt 0:00:50]} 43. b6 {[%emt 0:01:01]} Rb4 {[%emt 0:02:28]} 44. b7 {[%emt 0:00:49]} Rb6 {[%emt 0:00:29]} 45. Rc2 {[%emt 0:01:37]} Bc5 {[%emt 0:04:44]} 46. Rc3 {[%emt 0:04:54]} Rb2 {[%emt 0:01:02]} 47. Rf3 {[%emt 0:03:23]} Ke7 {[%emt 0:02:11]} 48. Kg3 {[%emt 0:03:57]} Bd6 {[%emt 0:00:52]} 49. Kh4 {[%emt 0:02:34]} Rb6 {[%emt 0:00:49]} 50. Bf1 {[%emt 0:03:34]} Rxb7 {[%emt 0:01:14]} 51. Kg5 {[%emt 0:01:13]} Bc5 {[%emt 0:01:27]} 52. Kh4 {[%emt 0:01:38]} Rb4 {[%emt 0:01:03]} 53. Bd3 {[%emt 0:00:40]} f5 {[%emt 0:01:17]} 54. Bc2 {[%emt 0:00:06]} fxe4 {[%emt 0:01:15]} 55. d6+ {[%emt 0:00:49]} Kxd6 {[%emt 0:01:45]} 56. Rf6+ {[%emt 0:00:05]} Ke7 {[%emt 0:00:32]} 57. Kg5 {[%emt 0:01:05]} e3 {[%emt 0:00:11]} 58. fxe3 {[%emt 0:00:35]} Rg4+ {[%emt 0:00:11]} 0-1

[Event "WYCC 2018 G16"]
[Site "Halkidiki"]
[Date "2018.10.22"]
[Round "4"]
[White "Shanya Mishra"]
[Black "Rudzinska, Michalina"]
[Result "1/2-1/2"]
[ECO "A61"]
[WhiteElo "1924"]
[BlackElo "2073"]
[Annotator "NA"]
[PlyCount "108"]
[EventDate "2018.10.20"]
[EventType "swiss"]
[EventCountry "GRE"]
[SourceTitle "playchess.com"]
[Source "ChessBase"]
[SourceQuality "1"]
[TimeControl "40/5400+30:1800+30"]

1. d4 {[%emt 0:00:00]} Nf6 {[%emt 0:00:00]} 2. c4 {[%emt 0:00:12]} e6 {[%emt 0:00:00]} 3. Nf3 {[%emt 0:00:22]} c5 {[%emt 0:00:00]} 4. d5 {[%emt 0:00:37]} exd5 {[%emt 0:00:01]} 5. cxd5 {[%emt 0:00:26]} d6 {[%emt 0:00:08]} 6. Nc3 {[%emt 0:00:49]} g6 {[%emt 0:00:11]} 7. Bf4 {[%emt 0:01:03]} a6 {[%emt 0:00:11]} 8. a4 {[%emt 0:00:41]} Bg7 {[%emt 0:00:12]} 9. h3 {[%emt 0:00:42]} O-O {[%emt 0:00:11]} 10. e3 {[%emt 0:01:28]} Ne8 {[%emt 0:00:17]} 11. Nd2 {[%emt 0:03:20]} Qe7 {[%emt 0:01:53]} 12. Be2 {[%emt 0:01:06]} Nd7 {[%emt 0:00:30]} 13. O-O {[%emt 0:01:52]} Ne5 {[%emt 0:01:23]} 14. Qc2 {[%emt 0:02:33]} Nc7 {[%emt 0:09:51]} 15. Bg3 {[%emt 0:05:03]} f5 {[%emt 0:02:11]} 16. Rfe1 {[%emt 0:07:06]} Bd7 {[%emt 0:04:53]} 17. a5 $11 {[%emt 0:03:59]} Rab8 {[%emt 0:17:47]} 18. f4 {[%emt 0:19:06]} Nf7 {[%emt 0:00:14]} 19. Bc4 {[%emt 0:00:13]} Nb5 {[%emt 0:05:19]} 20. Na4 {[%emt 0:04:28]} Rbe8 {[%emt 0:08:38]} 21. Nb6 {[%emt 0:01:39]} Nh6 {[%emt 0:02:21]} 22. Nf3 {[%emt 0:03:22]} Bf6 {[%emt 0:06:51]} 23. Rad1 {[%emt 0:10:21]} Qd8 {[%emt 0:01:57]} 24. Qf2 {[%emt 0:04:05]} Nc7 {[%emt 0:14:16]} 25. Nxd7 {[%emt 0:07:20]} Qxd7 {[%emt 0:00:05]} 26. Bh4 {[%emt 0:00:31]} Bxh4 {[%emt 0:01:56]} 27. Qxh4 {[%emt 0:00:39]} Nf7 {[%emt 0:00:46]} 28. b3 {[%emt 0:00:14]} Re7 {[%emt 0:01:43]} 29. Kf2 {[%emt 0:04:37]} Kg7 {[%emt 0:01:55]} 30. g4 {[%emt 0:01:18]} fxg4 {[%emt 0:03:23]} 31. hxg4 {[%emt 0:00:06]} h6 {[%emt 0:00:28]} 32. Kg2 {[%emt 0:04:30]} Rfe8 {[%emt 0:03:03]} 33. Rd3 {[%emt 0:00:09]} Re4 {[%emt 0:01:54]} 34. Nd2 {[%emt 0:00:59]} g5 {[%emt 0:00:21]} 35. Qh5 {[%emt 0:02:50]} Rxf4 {[%emt 0:01:06]} 36. exf4 {[%emt 0:00:54]} Rxe1 {[%emt 0:00:05]} 37. Rh3 {[%emt 0:01:21]} Qe7 {[%emt 0:06:16]} 38. Nf3 {[%emt 0:05:00]} Qe4 {[%emt 0:00:31]} 39. Kf2 {[%emt 0:01:50]} Rb1 {[%emt 0:01:46]} 40. fxg5 {[%emt 0:00:00]} Rb2+ {[%emt 0:00:00]} 41. Kg3 {[%emt 0:05:38]} Qe3 {[%emt 0:10:54]} 42. gxh6+ {[%emt 0:01:12]} Nxh6 {[%emt 0:00:20]} 43. Qg5+ {[%emt 0:05:18]} Qxg5 {[%emt 0:00:07]} 44. Nxg5 {[%emt 0:00:05]} Rb1 {[%emt 0:11:40]} 45. Rxh6 {[%emt 0:03:12]} Kxh6 {[%emt 0:00:20]} 46. Nf7+ {[%emt 0:00:04]} Kg7 {[%emt 0:00:07]} 47. Nxd6 {[%emt 0:00:04]} Rd1 {[%emt 0:01:49]} 48. Nxb7 {[%emt 0:00:38]} Nxd5 {[%emt 0:00:22]} 49. Nxc5 {[%emt 0:00:19]} Nb4 {[%emt 0:01:11]} 50. Nxa6 {[%emt 0:00:19]} Nxa6 {[%emt 0:00:23]} 51. Bxa6 {[%emt 0:00:04]} Ra1 {[%emt 0:00:24]} 52. b4 {[%emt 0:00:46]} Ra4 {[%emt 0:00:45]} 53. Bb7 {[%emt 0:03:08]} Rxb4 {[%emt 0:00:39]} 54. a6 {[%emt 0:00:08]} Ra4 {[%emt 0:00:07]} 1/2-1/2

[Event "WYCC 2018 G16"]
[Site "Halkidiki"]
[Date "2018.10.22"]
[Round "4"]
[White "Esadze, Tamari"]
[Black "Staravoitava, Hanna"]
[Result "0-1"]
[ECO "B01"]
[WhiteElo "1911"]
[BlackElo "1768"]
[Annotator "NA"]
[PlyCount "80"]
[EventDate "2018.10.20"]
[EventType "swiss"]
[EventCountry "GRE"]
[SourceTitle "playchess.com"]
[Source "ChessBase"]
[SourceQuality "1"]
[TimeControl "40/5400+30:1800+30"]

1. e4 {[%emt 0:00:00]} d5 {[%emt 0:00:00]} 2. exd5 {[%emt 0:00:00]} Nf6 {[%emt 0:00:00]} 3. d4 {[%emt 0:00:00]} Nxd5 {[%emt 0:00:08]} 4. c4 {[%emt 0:00:07]} Nb6 {[%emt 0:00:05]} 5. Nf3 {[%emt 0:00:13]} Bg4 {[%emt 0:02:33]} 6. Be2 {[%emt 0:11:42]} Nc6 {[%emt 0:00:35]} 7. c5 {[%emt 0:05:30]} Nd5 {[%emt 0:00:45]} 8. O-O {[%emt 0:02:36]} g6 {[%emt 0:02:53]} 9. Nc3 {[%emt 0:06:16]} Bg7 {[%emt 0:01:04]} 10. Qb3 {[%emt 0:03:40]} e6 {[%emt 0:21:46]} 11. Qxb7 {[%emt 0:12:08]} Ndb4 {[%emt 0:13:30]} 12. Qb5 {[%emt 0:10:19]} Rb8 {[%emt 0:01:40]} 13. Qa4 {[%emt 0:00:05]} O-O {[%emt 0:07:22]} 14. a3 {[%emt 0:05:42]} Bxf3 {[%emt 0:00:04]} 15. Bxf3 {[%emt 0:00:45]} Nxd4 {[%emt 0:00:05]} 16. axb4 {[%emt 0:00:47]} Nxf3+ {[%emt 0:00:04]} 17. gxf3 {[%emt 0:00:39]} Qh4 {[%emt 0:00:03]} 18. b5 {[%emt 0:06:23]} Bd4 {[%emt 0:02:30]} 19. Be3 {[%emt 0:03:30]} Rfd8 {[%emt 0:00:36]} 20. Rfd1 {[%emt 0:01:40]} e5 {[%emt 0:01:06]} 21. Ne2 {[%emt 0:01:00]} Rd5 {[%emt 0:11:30]} 22. Nc3 {[%emt 0:09:57]} Rxc5 {[%emt 0:09:04]} 23. Ne4 {[%emt 0:02:05]} Bxe3 {[%emt 0:02:22]} 24. fxe3 {[%emt 0:00:02]} Rcxb5 {[%emt 0:00:13]} 25. Rd2 {[%emt 0:06:04]} Kg7 {[%emt 0:00:22]} 26. Qa3 {[%emt 0:03:44]} Rb3 {[%emt 0:03:13]} 27. Qc5 {[%emt 0:00:05]} R8b5 {[%emt 0:00:20]} 28. Qxc7 {[%emt 0:02:05]} Rxe3 {[%emt 0:00:20]} 29. Rf1 {[%emt 0:02:27]} Qf4 {[%emt 0:01:24]} 30. Rdf2 {[%emt 0:02:49]} Rbb3 {[%emt 0:06:08]} 31. Nc5 {[%emt 0:00:03]} Rb6 {[%emt 0:00:31]} 32. Qxa7 {[%emt 0:00:30]} Rf6 {[%emt 0:00:08]} 33. Nd7 {[%emt 0:02:28]} Rf5 {[%emt 0:01:15]} 34. Qa8 {[%emt 0:00:10]} Kh6 {[%emt 0:00:10]} 35. Qf8+ {[%emt 0:00:32]} Kh5 {[%emt 0:00:00]} 36. Nc5 {[%emt 0:01:12]} Qd4 {[%emt 0:10:04]} 37. Qc8 {[%emt 0:00:37]} Rexf3 {[%emt 0:00:17]} 38. Qd7 {[%emt 0:00:25]} Qg4+ {[%emt 0:01:15]} 39. Kh1 {[%emt 0:00:04]} Rxf2 {[%emt 0:00:06]} 40. Rxf2 {[%emt 0:00:00]} Rxf2 {[%emt 0:00:00]} 0-1

[Event "WYCC 2018 G16"]
[Site "Halkidiki"]
[Date "2018.10.22"]
[Round "4"]
[White "Xing, Ashley"]
[Black "Plaza Reino, Mercedes"]
[Result "1-0"]
[ECO "D35"]
[WhiteElo "1889"]
[BlackElo "1727"]
[Annotator "NA"]
[PlyCount "107"]
[EventDate "2018.10.20"]
[EventType "swiss"]
[EventCountry "GRE"]
[SourceTitle "playchess.com"]
[Source "ChessBase"]
[SourceQuality "1"]
[TimeControl "40/5400+30:1800+30"]

1. d4 {[%emt 0:00:00]} d5 {[%emt 0:00:00]} 2. c4 {[%emt 0:00:00]} e6 {[%emt 0:00:00]} 3. Nc3 {[%emt 0:00:00]} Nf6 {[%emt 0:00:00]} 4. cxd5 {[%emt 0:00:00]} exd5 {[%emt 0:00:00]} 5. Bg5 {[%emt 0:00:00]} Be7 {[%emt 0:00:00]} 6. e3 {[%emt 0:00:03]} h6 {[%emt 0:00:17]} 7. Bh4 {[%emt 0:00:11]} c6 {[%emt 0:00:11]} 8. Bd3 {[%emt 0:00:27]} O-O {[%emt 0:00:17]} 9. Qc2 {[%emt 0:00:22]} Nbd7 {[%emt 0:00:14]} 10. Nge2 {[%emt 0:00:15]} Re8 {[%emt 0:05:07]} 11. O-O {[%emt 0:00:33]} Ne4 {[%emt 0:08:13]} 12. Bxe7 {[%emt 0:02:01]} Qxe7 {[%emt 0:00:11]} 13. a3 {[%emt 0:06:45]} Nd6 {[%emt 0:16:39]} 14. b4 {[%emt 0:09:05]} Nb6 {[%emt 0:06:33]} 15. a4 {[%emt 0:10:49]} a5 {[%emt 0:06:56]} 16. b5 {[%emt 0:06:16]} Ndc4 {[%emt 0:02:19]} 17. Nf4 {[%emt 0:06:29]} Rd8 {[%emt 0:05:18]} 18. Rfe1 {[%emt 0:18:14]} Qd6 {[%emt 0:05:42]} 19. Qc1 {[%emt 0:08:51]} Qf6 {[%emt 0:10:42]} 20. Nfe2 {[%emt 0:07:10]} Be6 {[%emt 0:06:26]} 21. bxc6 {[%emt 0:02:41]} bxc6 {[%emt 0:00:24]} 22. e4 {[%emt 0:03:03]} Rac8 {[%emt 0:06:21]} 23. e5 {[%emt 0:02:00]} Qe7 {[%emt 0:01:51]} 24. Nf4 {[%emt 0:02:26]} c5 {[%emt 0:03:09]} 25. Nxe6 {[%emt 0:02:24]} fxe6 {[%emt 0:00:40]} 26. Qf4 {[%emt 0:01:36]} Rf8 {[%emt 0:02:35]} 27. Qg4 {[%emt 0:02:05]} Qf7 {[%emt 0:00:40]} 28. f3 {[%emt 0:01:03]} Nb2 {[%emt 0:03:31]} 29. Bg6 {[%emt 0:02:25]} Qe7 {[%emt 0:01:45]} 30. Nb5 {[%emt 0:01:09]} N2c4 {[%emt 0:02:40]} 31. Kh1 {[%emt 0:00:43]} Rb8 {[%emt 0:01:21]} 32. dxc5 {[%emt 0:00:41]} Nxa4 {[%emt 0:00:44]} 33. Nd4 {[%emt 0:00:16]} Nxc5 {[%emt 0:01:03]} 34. Nc6 {[%emt 0:00:08]} Qc7 {[%emt 0:00:49]} 35. Nxb8 {[%emt 0:00:12]} Rxb8 {[%emt 0:00:41]} 36. f4 {[%emt 0:01:45]} a4 {[%emt 0:01:49]} 37. Bc2 {[%emt 0:02:04]} Qf7 {[%emt 0:01:21]} 38. Bxa4 {[%emt 0:00:46]} Nd3 {[%emt 0:00:48]} 39. Re2 {[%emt 0:01:28]} Ra8 {[%emt 0:01:35]} 40. Qf3 {[%emt 0:00:00]} Ndb2 {[%emt 0:00:00]} 41. Qb3 {[%emt 0:16:16]} Qxf4 {[%emt 0:06:09]} 42. Ree1 {[%emt 0:03:37]} Qd2 {[%emt 0:11:13]} 43. Bd7 {[%emt 0:05:52]} Rf8 {[%emt 0:05:11]} 44. Bxe6+ {[%emt 0:00:08]} Kh7 {[%emt 0:00:21]} 45. Qh3 {[%emt 0:03:22]} d4 {[%emt 0:03:36]} 46. Bf5+ {[%emt 0:03:03]} Kh8 {[%emt 0:00:20]} 47. e6 {[%emt 0:00:39]} Ne3 {[%emt 0:00:46]} 48. e7 {[%emt 0:01:03]} Re8 {[%emt 0:00:13]} 49. Bg6 {[%emt 0:00:09]} Nbd1 {[%emt 0:03:32]} 50. Rexd1 {[%emt 0:01:14]} Nxd1 {[%emt 0:00:02]} 51. Qe6 {[%emt 0:02:45]} Ne3 {[%emt 0:04:37]} 52. Qe4 {[%emt 0:00:10]} Qb2 {[%emt 0:00:34]} 53. Rg1 {[%emt 0:00:37]} Rxe7 54. Qa8+ {[%emt 0:00:19]} 1-0

[Event "WYCC 2018 G16"]
[Site "Halkidiki"]
[Date "2018.10.22"]
[Round "4"]
[White "Skaslien, Ingrid"]
[Black "Aubert, Estee"]
[Result "1/2-1/2"]
[ECO "E63"]
[WhiteElo "1885"]
[BlackElo "2064"]
[Annotator "NA"]
[PlyCount "95"]
[EventDate "2018.10.20"]
[EventType "swiss"]
[EventCountry "GRE"]
[SourceTitle "playchess.com"]
[Source "ChessBase"]
[SourceQuality "1"]
[TimeControl "40/5400+30:1800+30"]

1. d4 {[%emt 0:00:00]} Nf6 {[%emt 0:00:00]} 2. Nf3 {[%emt 0:00:00]} g6 {[%emt 0:00:18]} 3. g3 {[%emt 0:00:28]} Bg7 {[%emt 0:00:41]} 4. Bg2 {[%emt 0:00:34]} O-O {[%emt 0:01:23]} 5. O-O {[%emt 0:01:33]} d6 {[%emt 0:00:12]} 6. c4 {[%emt 0:02:24]} Nc6 {[%emt 0:01:23]} 7. Nc3 {[%emt 0:02:32]} a6 {[%emt 0:01:48]} 8. e4 {[%emt 0:02:57]} Bg4 {[%emt 0:03:12]} 9. Be3 {[%emt 0:01:43]} Rb8 {[%emt 0:17:58]} 10. Rb1 {[%emt 0:14:40]} b5 {[%emt 0:24:07]} 11. b4 {[%emt 0:04:55]} Qc8 {[%emt 0:12:09]} 12. Qd3 {[%emt 0:05:51]} Bd7 {[%emt 0:17:08]} 13. d5 {[%emt 0:19:28]} Nd8 {[%emt 0:04:16]} 14. c5 $16 {[%emt 0:05:39]} Bg4 {[%emt 0:07:58]} 15. Nd2 {[%emt 0:09:03]} Bh3 {[%emt 0:02:04]} 16. Rbc1 {[%emt 0:02:30]} Bxg2 {[%emt 0:00:13]} 17. Kxg2 {[%emt 0:00:03]} Qd7 {[%emt 0:00:23]} 18. f3 {[%emt 0:01:21]} dxc5 {[%emt 0:00:49]} 19. bxc5 {[%emt 0:02:41]} e6 {[%emt 0:01:31]} 20. d6 {[%emt 0:05:58]} Ne8 {[%emt 0:00:11]} 21. Bf4 {[%emt 0:00:26]} e5 {[%emt 0:01:01]} 22. Be3 {[%emt 0:02:16]} cxd6 {[%emt 0:00:07]} 23. Nd5 {[%emt 0:01:38]} Nc6 {[%emt 0:00:56]} 24. Nb6 {[%emt 0:00:44]} Qe6 {[%emt 0:01:28]} 25. Qd5 {[%emt 0:01:43]} Qxd5 {[%emt 0:00:41]} 26. exd5 {[%emt 0:00:01]} Nb4 {[%emt 0:00:27]} 27. Nd7 {[%emt 0:00:48]} Rd8 {[%emt 0:00:08]} 28. Nxf8 {[%emt 0:00:14]} Bxf8 {[%emt 0:00:02]} 29. c6 {[%emt 0:01:34]} Nxd5 {[%emt 0:00:08]} 30. Kf2 {[%emt 0:02:04]} Rc8 {[%emt 0:00:08]} 31. Nb3 {[%emt 0:01:12]} Nb4 {[%emt 0:00:11]} 32. Ke2 {[%emt 0:00:46]} Nxa2 {[%emt 0:01:03]} 33. Ra1 {[%emt 0:00:44]} Nc3+ {[%emt 0:00:16]} 34. Kd3 {[%emt 0:00:21]} Rxc6 {[%emt 0:00:17]} 35. Rfc1 {[%emt 0:00:42]} b4 {[%emt 0:00:04]} 36. Bd2 {[%emt 0:00:15]} d5 {[%emt 0:02:00]} 37. Bxc3 {[%emt 0:00:23]} bxc3 {[%emt 0:00:32]} 38. Rxc3 {[%emt 0:00:31]} Rb6 {[%emt 0:00:37]} 39. Nc5 {[%emt 0:01:49]} Nc7 {[%emt 0:01:04]} 40. Nd7 {[%emt 0:00:00]} Rb7 {[%emt 0:00:00]} 41. Nxe5 {[%emt 0:05:24]} Bd6 {[%emt 0:08:22]} 42. f4 {[%emt 0:04:47]} Rb6 {[%emt 0:12:00]} 43. Nd7 {[%emt 0:09:02]} Rb7 {[%emt 0:03:23]} 44. Rc6 {[%emt 0:02:29]} Be7 {[%emt 0:04:58]} 45. Nc5 {[%emt 0:03:55]} Bxc5 46. Rxc5 {[%emt 0:00:02]} d4 {[%emt 0:02:59]} 47. Rc2 {[%emt 0:01:02]} Ne6 {[%emt 0:01:04]} 48. Ke4 1/2-1/2

[Event "WYCC 2018 G16"]
[Site "Halkidiki"]
[Date "2018.10.22"]
[Round "4"]
[White "Tejasvi M"]
[Black "Ge, Eva"]
[Result "1-0"]
[ECO "B40"]
[WhiteElo "1869"]
[BlackElo "1701"]
[Annotator "NA"]
[PlyCount "65"]
[EventDate "2018.10.20"]
[EventType "swiss"]
[EventCountry "GRE"]
[SourceTitle "playchess.com"]
[Source "ChessBase"]
[SourceQuality "1"]
[TimeControl "40/5400+30:1800+30"]

1. e4 {[%emt 0:00:07]} c5 {[%emt 0:00:00]} 2. Nf3 {[%emt 0:00:09]} e6 {[%emt 0:00:00]} 3. d4 {[%emt 0:00:04]} cxd4 {[%emt 0:00:00]} 4. Nxd4 {[%emt 0:00:07]} Nf6 {[%emt 0:00:00]} 5. Nc3 {[%emt 0:00:09]} Nc6 {[%emt 0:00:00]} 6. Ndb5 {[%emt 0:00:07]} Bb4 {[%emt 0:00:00]} 7. a3 {[%emt 0:00:18]} Bxc3+ {[%emt 0:00:04]} 8. Nxc3 {[%emt 0:00:06]} d5 {[%emt 0:00:06]} 9. exd5 {[%emt 0:00:13]} exd5 {[%emt 0:00:10]} 10. Bd3 {[%emt 0:00:35]} O-O {[%emt 0:00:08]} 11. O-O {[%emt 0:00:08]} d4 {[%emt 0:00:04]} 12. Ne2 {[%emt 0:00:09]} Bg4 {[%emt 0:00:04]} 13. f3 {[%emt 0:00:30]} Bh5 {[%emt 0:00:12]} 14. Nf4 {[%emt 0:00:23]} Bg6 {[%emt 0:00:33]} 15. Nxg6 {[%emt 0:00:30]} hxg6 {[%emt 0:00:04]} 16. f4 {[%emt 0:03:05]} Qb6 {[%emt 0:05:10]} 17. f5 {[%emt 0:13:30]} Ne5 {[%emt 0:01:36]} 18. fxg6 {[%emt 0:05:04]} Nxg6 {[%emt 0:06:11]} 19. Bxg6 {[%emt 0:04:55]} fxg6 {[%emt 0:00:03]} 20. Qd3 {[%emt 0:07:01]} Nd5 {[%emt 0:06:41]} 21. Bd2 {[%emt 0:18:00]} Rac8 {[%emt 0:32:27]} 22. b4 {[%emt 0:13:37]} Ne3 {[%emt 0:17:02]} 23. Rxf8+ {[%emt 0:01:18]} Kxf8 {[%emt 0:13:22]} 24. Re1 {[%emt 0:05:58]} Qc6 {[%emt 0:06:59]} 25. Bxe3 {[%emt 0:00:36]} dxe3 {[%emt 0:00:22]} 26. Qxe3 {[%emt 0:00:49]} Qxc2 {[%emt 0:01:46]} 27. Qe6 {[%emt 0:00:17]} Qf5 {[%emt 0:05:30]} 28. Rf1 {[%emt 0:00:42]} Rc1 {[%emt 0:01:00]} 29. Qxf5+ {[%emt 0:00:12]} gxf5 {[%emt 0:00:09]} 30. Rxc1 {[%emt 0:00:04]} b6 {[%emt 0:00:12]} 31. Rc7 {[%emt 0:00:05]} a5 {[%emt 0:00:16]} 32. bxa5 {[%emt 0:00:04]} bxa5 {[%emt 0:00:03]} 33. Ra7 {[%emt 0:00:06]} 1-0

[Event "WYCC 2018 G16"]
[Site "Halkidiki"]
[Date "2018.10.22"]
[Round "4"]
[White "Kvendseth, Thyra"]
[Black "De Freitas, Isabella Ribeiro Co"]
[Result "1-0"]
[ECO "D56"]
[WhiteElo "1854"]
[BlackElo "1605"]
[Annotator "NA"]
[PlyCount "55"]
[EventDate "2018.10.20"]
[EventType "swiss"]
[EventCountry "GRE"]
[SourceTitle "playchess.com"]
[Source "ChessBase"]
[SourceQuality "1"]
[TimeControl "40/5400+30:1800+30"]

1. d4 {[%emt 0:00:00]} d5 {[%emt 0:00:00]} 2. c4 {[%emt 0:00:00]} e6 {[%emt 0:00:00]} 3. Nc3 {[%emt 0:00:24]} Nf6 {[%emt 0:00:07]} 4. Nf3 {[%emt 0:00:05]} Be7 {[%emt 0:00:08]} 5. Bg5 {[%emt 0:02:37]} h6 {[%emt 0:01:17]} 6. Bh4 {[%emt 0:02:28]} O-O {[%emt 0:02:02]} 7. e3 {[%emt 0:00:32]} Nbd7 {[%emt 0:02:10]} 8. Rc1 {[%emt 0:01:34]} c6 {[%emt 0:04:04]} 9. Bd3 {[%emt 0:04:47]} dxc4 {[%emt 0:04:48]} 10. Bxc4 {[%emt 0:00:28]} Nb6 {[%emt 0:00:18]} 11. Bd3 {[%emt 0:01:25]} Nbd5 {[%emt 0:02:59]} 12. O-O {[%emt 0:02:39]} Re8 {[%emt 0:05:52]} 13. Ne2 {[%emt 0:04:57]} Nb4 {[%emt 0:15:28]} 14. Bb1 {[%emt 0:01:21]} Qb6 {[%emt 0:00:28]} 15. a3 {[%emt 0:02:46]} Nbd5 {[%emt 0:01:49]} 16. e4 {[%emt 0:02:56]} Nc7 {[%emt 0:00:56]} 17. Qc2 {[%emt 0:05:00]} g6 {[%emt 0:12:46]} 18. Qd2 {[%emt 0:16:06]} Kg7 {[%emt 0:03:13]} 19. Qc2 {[%emt 0:14:01]} Bd7 {[%emt 0:10:42]} 20. Ne5 {[%emt 0:03:45]} Rad8 {[%emt 0:00:52]} 21. Nxg6 {[%emt 0:09:09]} Ng8 {[%emt 0:17:24]} 22. Nxe7 {[%emt 0:01:18]} Nxe7 {[%emt 0:02:22]} 23. e5 {[%emt 0:01:25]} Ng6 {[%emt 0:02:55]} 24. Bf6+ {[%emt 0:03:52]} Kg8 {[%emt 0:08:23]} 25. Nf4 {[%emt 0:00:37]} Nd5 {[%emt 0:00:41]} 26. Nxg6 {[%emt 0:01:08]} Nxf6 {[%emt 0:00:04]} 27. exf6 {[%emt 0:00:20]} Qxd4 {[%emt 0:00:10]} 28. Ne5 {[%emt 0:00:46]} 1-0

[Event "WYCC 2018 G16"]
[Site "Halkidiki"]
[Date "2018.10.22"]
[Round "4"]
[White "Pecorini, Angie"]
[Black "Bania, Eleni"]
[Result "0-1"]
[ECO "A83"]
[WhiteElo "1847"]
[BlackElo "1454"]
[Annotator "NA"]
[PlyCount "50"]
[EventDate "2018.10.20"]
[EventType "swiss"]
[EventCountry "GRE"]
[SourceTitle "playchess.com"]
[Source "ChessBase"]
[SourceQuality "1"]
[TimeControl "40/5400+30:1800+30"]

1. d4 {[%emt 0:00:00]} f5 {[%emt 0:00:00]} 2. e4 {[%emt 0:00:00]} fxe4 {[%emt 0:00:09]} 3. Nc3 {[%emt 0:00:00]} Nf6 {[%emt 0:01:48]} 4. Bg5 {[%emt 0:00:00]} g6 {[%emt 0:01:13]} 5. h4 {[%emt 0:00:34]} Bg7 {[%emt 0:28:18]} 6. h5 {[%emt 0:00:57]} Nxh5 {[%emt 0:01:51]} 7. Rxh5 {[%emt 0:00:08]} gxh5 {[%emt 0:00:05]} 8. Qxh5+ {[%emt 0:00:11]} Kf8 {[%emt 0:00:02]} 9. Bc4 {[%emt 0:09:59]} Qe8 {[%emt 0:01:17]} 10. Qh2 {[%emt 0:03:08]} e6 {[%emt 0:06:32]} 11. d5 {[%emt 0:25:18]} d6 {[%emt 0:14:20]} 12. Qf4+ {[%emt 0:03:28]} Qf7 {[%emt 0:04:33]} 13. Qxe4 {[%emt 0:34:26]} e5 {[%emt 0:13:28]} 14. O-O-O {[%emt 0:00:23]} Bf5 {[%emt 0:05:47]} 15. Qh4 {[%emt 0:00:30]} Nd7 {[%emt 0:02:29]} 16. Bd3 {[%emt 0:02:58]} Nc5 {[%emt 0:04:14]} 17. Bxf5 {[%emt 0:03:13]} Qxf5 {[%emt 0:00:07]} 18. g4 {[%emt 0:00:32]} Qf7 {[%emt 0:01:12]} 19. b4 {[%emt 0:00:22]} Na6 {[%emt 0:02:38]} 20. Rd3 {[%emt 0:00:37]} Kg8 {[%emt 0:00:58]} 21. Ne4 {[%emt 0:07:16]} h6 {[%emt 0:01:26]} 22. Rf3 {[%emt 0:03:56]} Qg6 {[%emt 0:02:16]} 23. Nf6+ {[%emt 0:03:02]} Bxf6 {[%emt 0:00:24]} 24. Bxf6 {[%emt 0:00:19]} Nxb4 {[%emt 0:01:00]} 25. Rf5 {[%emt 0:00:38]} Rh7 {[%emt 0:01:15]} 0-1